fUSD/lending_fUSD_20260202
["ID","MTS","AMOUNT","RATE_DAILY","PERIOD"]
[404336356,1770066649696,-163.0,0.00017879,2]
[404336357,1770066649706,-1279.265,0.00017879,2]
[404336358,1770066649716,-917.0,0.00017879,2]
[404336359,1770066649725,-1205.0,0.00017879,2]
[404336360,1770066649735,-423.036,0.00017879,2]
[404336361,1770066649745,-2465.108,0.00017879,2]
[404336362,1770066649755,-3253.0,0.00017879,2]
[404336363,1770066649764,-568.0,0.00017879,2]
[404336364,1770066649774,-25000.0,0.00017882,3]
[404336365,1770066649783,-25000.0,0.00017891,3]
[404336366,1770066649793,-25000.0,0.000179,3]
[404336367,1770066649804,-500.0,0.000179,2]
[404336368,1770066649818,-20453.46079029,0.000179,3]
[404336369,1770066649828,-373.07297731,0.00017928,2]
[404336370,1770066649838,-621.78829552,0.0001793,2]
[404336371,1770066649848,-775.47832561,0.0001793,2]
[404336372,1770066649858,-251.11897888,0.00017932,2]
[404336373,1770066649868,-301.1433787,0.00017932,2]
[404336374,1770066649879,-2054.15682157,0.00017932,2]
[404336375,1770066649890,-500.0,0.00017982,2]
[404336376,1770066649911,-4907.0,0.00017983,2]
[404336377,1770066649923,-151.0,0.00017997,2]
[404336378,1770066649933,-151.0,0.00017997,2]
[404336379,1770066649944,-151.0,0.00017997,2]
[404336380,1770066649956,-202.144,0.00017999,2]
[404336381,1770066649967,-300.0,0.00017999,2]
[404336382,1770066649978,-2550.35382909,0.00018,5]
[404336383,1770066649990,-5153788.94486149,0.00018,2]
[404336384,1770066650002,-5800.0,0.00018,2]
[404336385,1770066650013,-7500.35840853,0.00018,2]
[404336386,1770066650024,-109514.78915317,0.00018,2]
[404336387,1770066650035,-377302.39963193,0.00018,2]
[404336388,1770066650842,-1095.15656379,0.00018,2]
[404336389,1770066650855,-392.455,0.00018,2]
[404336390,1770066650890,-865.01,0.00018,2]
[404336391,1770066650910,-3195373.01309088,0.00018,2]
[404336392,1770066650919,-600.01972348,0.00018,2]
[404336393,1770066650929,-1191.99317303,0.00018,2]
[404336394,1770066650938,-525.23948875,0.00018,2]
[404336395,1770066650948,-500.0,0.00018,2]
[404336396,1770066650957,-500.0,0.00018,2]
[404336397,1770066650967,-500.0,0.00018,2]
[404336398,1770066650977,-500.0,0.00018,2]
[404336399,1770066650987,-500.0,0.00018,2]
[404336400,1770066650996,-500.0,0.00018,2]
[404336401,1770066651006,-500.0,0.00018,2]
[404336402,1770066651019,-301.52589831,0.00018,2]
[404336403,1770066651031,-200.0,0.00018,2]
[404336404,1770066651040,-163.404548,0.00018,2]
[404336405,1770066651050,-151.0,0.00018,2]
[404336406,1770066651064,-151.0,0.00018,2]
[404336407,1770066651073,-151.0,0.00018,2]
[404336408,1770066651082,-151.0,0.00018,2]
[404336409,1770066651091,-151.0,0.00018,2]
[404336410,1770066651102,-151.0,0.00018,2]
[404336411,1770066651111,-151.0,0.00018,2]
[404336412,1770066651121,-151.0,0.00018,2]
[404336413,1770066651132,-197.585821,0.00018,2]
[404336414,1770066651143,-150.0,0.00018,7]
[404336415,1770066651152,-483.238241,0.00018,2]
[404336416,1770066651161,-483.238241,0.00018,2]
[404336417,1770066651171,-483.238241,0.00018,2]
[404336418,1770066651180,-483.238241,0.00018,2]
[404336419,1770066651190,-483.238241,0.00018,2]
[404336420,1770066651199,-483.238241,0.00018,2]
[404336421,1770066651209,-483.238241,0.00018,2]
[404336422,1770066651222,-483.238241,0.00018,2]
[404336423,1770066651232,-151.0,0.00018,2]
[404336424,1770066651243,-151.0,0.00018,2]
[404336425,1770066651252,-151.0,0.00018,2]
[404336426,1770066651262,-151.0,0.00018,2]
[404336427,1770066651271,-151.0,0.00018,2]
[404336428,1770066651281,-151.0,0.00018,2]
[404336429,1770066651292,-151.0,0.00018,2]
[404336430,1770066651303,-388.0,0.00018,2]
[404336431,1770066651313,-388.0,0.00018,2]
[404336432,1770066651323,-388.0,0.00018,2]
[404336433,1770066651332,-388.0,0.00018,2]
[404336434,1770066651344,-388.0,0.00018,2]
[404336435,1770066651353,-388.0,0.00018,2]
[404336436,1770066651364,-388.0,0.00018,2]
[404336437,1770066651373,-388.0,0.00018,2]
[404336438,1770066651384,-388.0,0.00018,2]
[404336439,1770066651396,-388.0,0.00018,2]
[404336440,1770066651405,-388.0,0.00018,2]
[404336441,1770066651416,-388.0,0.00018,2]
[404336442,1770066651427,-388.0,0.00018,2]
[404336443,1770066651437,-388.0,0.00018,2]
[404336444,1770066651448,-388.0,0.00018,2]
[404336445,1770066651457,-388.0,0.00018,2]
[404336446,1770066651467,-388.0,0.00018,2]
[404336447,1770066651476,-388.0,0.00018,2]
[404336448,1770066651486,-388.0,0.00018,2]
[404336449,1770066651496,-388.0,0.00018,2]
[404336450,1770066651505,-388.0,0.00018,2]
[404336451,1770066651515,-388.0,0.00018,2]
[404336452,1770066651524,-388.0,0.00018,2]
[404336453,1770066651534,-388.0,0.00018,2]
[404336454,1770066651543,-388.0,0.00018,2]
[404336455,1770066651553,-388.0,0.00018,2]
[404336456,1770066651562,-388.0,0.00018,2]
[404336457,1770066651572,-388.0,0.00018,2]
[404336458,1770066651581,-388.0,0.00018,2]
[404336459,1770066651591,-388.0,0.00018,2]
[404336460,1770066651600,-388.0,0.00018,2]
[404336461,1770066651609,-388.0,0.00018,2]
[404336462,1770066651619,-388.0,0.00018,2]
[404336463,1770066651628,-388.0,0.00018,2]
[404336464,1770066651638,-388.0,0.00018,2]
[404336465,1770066651647,-388.0,0.00018,2]
[404336466,1770066651656,-388.0,0.00018,2]
[404336467,1770066651666,-388.0,0.00018,2]
[404336468,1770066651675,-388.0,0.00018,2]
[404336469,1770066651686,-388.0,0.00018,2]
[404336470,1770066651695,-388.0,0.00018,2]
[404336471,1770066651707,-388.0,0.00018,2]
[404336472,1770066651717,-388.0,0.00018,2]
[404336473,1770066651726,-388.0,0.00018,2]
[404336474,1770066651737,-388.0,0.00018,2]
[404336475,1770066651748,-388.0,0.00018,2]
[404336476,1770066651759,-388.0,0.00018,2]
[404336477,1770066651769,-388.0,0.00018,2]
[404336478,1770066651780,-388.0,0.00018,2]
[404336479,1770066651790,-396.4730334,0.00018,2]
[404336480,1770066651800,-151.0,0.00018,2]
[404336481,1770066651811,-151.0,0.00018,2]
[404336482,1770066651821,-534.176251,0.00018,2]
[404336483,1770066651832,-223.762297,0.00018,2]
[404336484,1770066651841,-534.176251,0.00018,2]
[404336485,1770066651851,-151.0,0.00018,2]
[404336486,1770066651862,-418.358585,0.00018,2]
[404336487,1770066651871,-534.176251,0.00018,2]
[404336488,1770066651881,-151.0,0.00018,2]
[404336489,1770066651891,-418.358585,0.00018,2]
[404336490,1770066651901,-534.176251,0.00018,2]
[404336491,1770066651911,-151.0,0.00018,2]
[404336492,1770066651921,-418.358585,0.00018,2]
[404336493,1770066651932,-418.358585,0.00018,2]
[404336494,1770066651942,-200.0,0.00018,2]
[404336495,1770066651952,-151.0,0.00018,2]
[404336496,1770066651962,-151.0,0.00018,2]
[404336497,1770066651972,-151.0,0.00018,2]
[404336498,1770066651982,-151.0,0.00018,2]
[404336499,1770066651993,-170.567658,0.00018,2]
[404336500,1770066652003,-181.63,0.0001803,2]
[404336501,1770066652012,-159.60859955,0.00018054,2]
[404336502,1770066652023,-1000.0,0.00018082,2]
[404336503,1770066652033,-379.81,0.00018088,2]
[404336504,1770066652044,-189.8964064,0.00018093,2]
[404336505,1770066652055,-1780.35114252,0.000181,2]
[404336506,1770066652069,-201.39718201,0.00018116,2]
[404336507,1770066652080,-4905.0,0.00018118,2]
[404336508,1770066652090,-200.0,0.00018128,2]
[404336509,1770066652102,-4904.0,0.00018164,2]
[404336510,1770066652112,-4904.0,0.00018174,2]
[404336511,1770066652122,-200.0,0.0001818,2]
[404336512,1770066652133,-379.81,0.0001818,2]
[404336513,1770066652143,-4904.0,0.00018189,2]
[404336514,1770066652152,-4904.0,0.00018257,2]
[404336515,1770066652162,-4904.0,0.0001829,2]
[404336516,1770066652171,-1000.0,0.00018306,2]
[404336517,1770066652180,-4904.0,0.00018331,2]
[404336518,1770066652189,-300.0,0.00018355,2]
[404336519,1770066652199,-300.0,0.00018355,2]
[404336520,1770066652208,-666.0,0.00018355,2]
[404336521,1770066652217,-850.93477356,0.00018356,2]
[404336522,1770066652227,-88530.96,0.00018356,2]
[404336523,1770066652236,-1000.0,0.00018356,2]
[404336524,1770066652245,-200.0,0.00018362,2]
[404336525,1770066652255,-4905.0,0.00018389,2]
[404336526,1770066652265,-4904.0,0.00018413,2]
[404336527,1770066652274,-4904.0,0.00018474,2]
[404336528,1770066652284,-4904.0,0.00018477,2]
[404336529,1770066652293,-260.4103811,0.0001848,2]
[404336530,1770066652302,-4905.0,0.00018533,2]
[404336531,1770066652312,-200.0,0.00018545,2]
[404336532,1770066652322,-500.0,0.00018575,2]
[404336533,1770066652333,-1500.0,0.000186,2]
[404336534,1770066652343,-4904.0,0.00018613,2]
[404336535,1770066652352,-1000.0,0.0001863,2]
[404336536,1770066652362,-150.0,0.0001863,2]
[404336537,1770066652372,-150.0,0.0001869,2]
[404336538,1770066652381,-150.0,0.0001869,2]
[404336539,1770066652390,-150.0,0.0001869,2]
[404336540,1770066652399,-150.0,0.0001869,2]
[404336541,1770066652409,-170.0,0.0001869,2]
[404336542,1770066652419,-150.0,0.0001869,2]
[404336543,1770066652429,-150.0,0.0001869,2]
[404336544,1770066652439,-150.0,0.0001869,2]
[404336545,1770066652449,-150.0,0.0001869,2]
[404336546,1770066652458,-150.0,0.0001869,2]
[404336547,1770066652467,-200.0,0.00018731,2]
[404336548,1770066652477,-159.60859955,0.00018839,2]
[404336549,1770066652486,-16792.79177488,0.00018888,2]
[404336550,1770066652495,-300.0,0.00018899,2]
[404336551,1770066652504,-300.0,0.00018899,2]
[404336552,1770066652513,-666.0,0.00018899,2]
[404336553,1770066652523,-219.544,0.000189,2]
[404336554,1770066652532,-93778.56307633,0.000189,2]
[404336555,1770066652541,-1000.0,0.00018904,2]
[404336556,1770066652551,-4905.0,0.00018919,2]
[404336557,1770066652560,-1000.0,0.00018991,2]
[404336558,1770066652569,-300.0,0.00018999,2]
[404336559,1770066652579,-395.14024062,0.00019,2]
[404336560,1770066652588,-601.9720403,0.00019,2]
[404336561,1770066652598,-5171.63525443,0.00019,2]
[404336562,1770066652607,-20976.29068396,0.00019,2]
[404336563,1770066652617,-350.0,0.00019,2]
[404336564,1770066652627,-503.0,0.00019,2]
[404336565,1770066652636,-343.5303085,0.0001901,2]
[404336566,1770066652645,-270.0455652,0.00019028,2]
[404336567,1770066652656,-12649.0,0.00019066,2]
[404336568,1770066652665,-4904.0,0.00019104,2]
[404336569,1770066652674,-4904.0,0.00019164,2]
[404336570,1770066652684,-4904.0,0.00019175,2]
[404336571,1770066652693,-300.0,0.00019177,2]
[404336572,1770066652703,-500.0,0.00019178,2]
[404336573,1770066652712,-500.0,0.00019178,2]
[404336574,1770066652722,-500.0,0.00019178,2]
[404336575,1770066652732,-605.60929144,0.00019178,2]
[404336576,1770066652742,-500.0,0.00019178,2]
[404336577,1770066652752,-500.0,0.00019178,2]
[404336578,1770066652762,-500.0,0.00019178,2]
[404336579,1770066652772,-500.0,0.00019178,2]
[404336580,1770066652783,-500.0,0.00019178,2]
[404336581,1770066652792,-500.0,0.00019178,2]
[404336582,1770066652802,-500.0,0.00019178,2]
[404336583,1770066652811,-500.0,0.00019178,2]
[404336584,1770066652821,-500.0,0.00019178,2]
[404336585,1770066652830,-500.0,0.00019178,2]
[404336586,1770066652903,-20146.33,0.00019178,2]
[404336587,1770066652913,-151.0,0.00019178,2]
[404336588,1770066652922,-151.0,0.00019178,2]
[404336589,1770066652931,-151.0,0.00019178,2]
[404336590,1770066652941,-151.0,0.00019178,2]
[404336591,1770066652950,-151.0,0.00019178,2]
[404336592,1770066652960,-3035.858789,0.00019178,2]
[404336593,1770066652970,-3035.858789,0.00019178,2]
[404336594,1770066652979,-3035.858789,0.00019178,2]
[404336595,1770066652988,-3035.858789,0.00019178,2]
[404336596,1770066652997,-1311.465332,0.00019178,2]
[404336597,1770066653007,-1311.465332,0.00019178,2]
[404336598,1770066653016,-1311.465332,0.00019178,2]
[404336599,1770066653026,-1311.465332,0.00019178,2]
[404336600,1770066653035,-151.0,0.00019178,2]
[404336601,1770066653044,-151.0,0.00019178,2]
[404336602,1770066653055,-166.269928,0.00019178,2]
[404336603,1770066653066,-150.0,0.00019178,2]
[404336604,1770066653077,-1000.0,0.00019178,2]
[404336605,1770066653089,-250.0,0.00019178,2]
[404336606,1770066653099,-160.87049508,0.00019178,2]
[404336607,1770066653108,-4905.0,0.00019207,2]
[404336608,1770066653118,-4904.0,0.00019235,2]
[404336609,1770066653128,-4904.0,0.00019275,2]
[404336610,1770066653137,-386.87667747,0.00019297,2]
[404336611,1770066653146,-4905.0,0.00019367,2]
[404336612,1770066653155,-4904.0,0.00019375,2]
[404336613,1770066653164,-4904.0,0.00019392,2]
[404336614,1770066653173,-151.0,0.00019397,2]
[404336615,1770066653182,-151.0,0.000194,2]
[404336616,1770066653192,-151.0,0.000194,2]
[404336617,1770066653201,-1503.0,0.000194,2]
[404336618,1770066653210,-151.0,0.000194,2]
[404336619,1770066653219,-1503.0,0.000194,2]
[404336620,1770066653228,-151.0,0.000194,2]
[404336621,1770066653238,-1503.0,0.000194,2]
[404336622,1770066653247,-153.79594173,0.000194,2]
[404336623,1770066653256,-151.0,0.000194,2]
[404336624,1770066653266,-1503.0,0.000194,2]
[404336625,1770066653275,-1503.0,0.000194,2]
[404336626,1770066653286,-1503.0,0.000194,2]
[404336627,1770066653295,-1503.0,0.000194,2]
[404336628,1770066653304,-151.0,0.000194,2]
[404336629,1770066653313,-1503.0,0.000194,2]
[404336630,1770066653322,-151.0,0.000194,2]
[404336631,1770066653331,-1503.0,0.000194,2]
[404336632,1770066653340,-151.0,0.000194,2]
[404336633,1770066653350,-151.0,0.000194,2]
[404336634,1770066653359,-1503.0,0.000194,2]
[404336635,1770066653369,-151.0,0.000194,2]
[404336636,1770066653378,-1503.0,0.000194,2]
[404336637,1770066653387,-1503.0,0.000194,2]
[404336638,1770066653396,-151.0,0.000194,2]
[404336639,1770066653405,-1503.0,0.000194,2]
[404336640,1770066653415,-151.0,0.000194,2]
[404336641,1770066653424,-1503.0,0.000194,2]
[404336642,1770066653433,-151.0,0.000194,2]
[404336643,1770066653442,-1503.0,0.000194,2]
[404336644,1770066653451,-151.0,0.000194,2]
[404336645,1770066653461,-1503.0,0.000194,2]
[404336646,1770066653470,-151.0,0.000194,2]
[404336647,1770066653479,-1503.0,0.000194,2]
[404336648,1770066653488,-151.0,0.000194,2]
[404336649,1770066653497,-151.0,0.000194,2]
[404336650,1770066653507,-1503.0,0.000194,2]
[404336651,1770066653516,-1503.0,0.000194,2]
[404336652,1770066653525,-151.0,0.000194,2]
[404336653,1770066653534,-151.0,0.000194,2]
[404336654,1770066653543,-1503.0,0.000194,2]
[404336655,1770066653552,-1503.0,0.000194,2]
[404336656,1770066653562,-151.0,0.000194,2]
[404336657,1770066653571,-1503.0,0.000194,2]
[404336658,1770066653580,-151.0,0.000194,2]
[404336659,1770066653589,-1503.0,0.000194,2]
[404336660,1770066653599,-151.0,0.000194,2]
[404336661,1770066653608,-1503.0,0.000194,2]
[404336662,1770066653618,-151.0,0.000194,2]
[404336663,1770066653627,-1503.0,0.000194,2]
[404336664,1770066653636,-151.0,0.000194,2]
[404336665,1770066653645,-1503.0,0.000194,2]
[404336666,1770066653655,-1503.0,0.000194,2]
[404336667,1770066653664,-151.0,0.000194,2]
[404336668,1770066653673,-1503.0,0.000194,2]
[404336669,1770066653683,-151.0,0.000194,2]
[404336670,1770066653691,-1503.0,0.000194,2]
[404336671,1770066653701,-151.0,0.000194,2]
[404336672,1770066653711,-1503.0,0.000194,2]
[404336673,1770066653720,-151.0,0.000194,2]
[404336674,1770066653730,-1503.0,0.000194,2]
[404336675,1770066653739,-151.0,0.000194,2]
[404336676,1770066653749,-1503.0,0.000194,2]
[404336677,1770066653759,-151.0,0.000194,2]
[404336678,1770066653768,-1503.0,0.000194,2]
[404336679,1770066653777,-4904.0,0.00019409,2]
[404336680,1770066653786,-1000.0,0.00019452,2]
[404336681,1770066653796,-341.63207322,0.00019571,2]
[404336682,1770066653805,-280.03725112,0.00019576,2]
[404336683,1770066653815,-500.0,0.00019606,2]
[404336684,1770066653824,-159.60859955,0.00019624,2]
[404336685,1770066653833,-165.79,0.00019658,2]
[404336686,1770066653843,-256.669782,0.00019726,2]
[404336687,1770066653852,-256.669782,0.00019726,2]
[404336688,1770066653861,-256.669782,0.00019726,2]
[404336689,1770066653871,-256.669782,0.00019726,2]
[404336690,1770066653880,-250.0,0.00019726,2]
[404336691,1770066653890,-1000.0,0.00019726,2]
[404336692,1770066653900,-350.0,0.00019726,2]
[404336693,1770066653910,-155.0,0.00019799,2]
[404336694,1770066653919,-503.0,0.00019836,2]
[404336695,1770066653928,-1534.07115096,0.0002,2]
[404336696,1770066653938,-176.59729255,0.0002,2]
[404336697,1770066653947,-25608.48792622,0.0002,2]
[404336698,1770066653956,-2464.68,0.0002,2]
[404336699,1770066653966,-3950.0,0.0002,2]
[404336700,1770066653975,-1295.1801523,0.0002,2]
[404336701,1770066653985,-1045.48156087,0.0002,2]
[404336702,1770066653995,-2865.04978677,0.0002,2]
[404336703,1770066654004,-12930.4366456,0.0002,2]
[404336704,1770066654013,-152.0,0.0002,2]
[404336705,1770066654022,-1500.0,0.0002,2]
[404336706,1770066654032,-200.0,0.0002,2]
[404336707,1770066654041,-1999.0,0.0002,2]
[404336708,1770066654051,-8720.0,0.0002001,2]
[404336709,1770066654064,-290.39862941,0.00020124,2]
[404336710,1770066654073,-500.0,0.00020137,2]
[404336711,1770066654083,-350.0,0.00020274,2]
[404336712,1770066654092,-450.0,0.00020274,2]
[404336713,1770066654103,-35759.0,0.00020342,2]
[404336714,1770066654111,-159.60859955,0.00020409,2]
[404336715,1770066654121,-21544.3,0.00020548,2]
[404336716,1770066654130,-154.61,0.00020548,2]
[404336717,1770066654140,-401.19111454,0.00020666,2]
[404336718,1770066654150,-644.79446246,0.00020669,2]
[404336719,1770066654159,-804.17102365,0.00020669,2]
[404336720,1770066654168,-503.0,0.00020671,3]
[404336721,1770066654177,-301.1433787,0.00020672,2]
[404336722,1770066654187,-500.0,0.00020685,2]
[404336723,1770066654196,-22676.090458,0.000207,2]
[404336724,1770066654205,-1500.0,0.000207,2]
[404336725,1770066654214,-207.87,0.000208,2]
[404336726,1770066654224,-450.0,0.00020822,2]
[404336727,1770066654232,-550.0,0.00020822,2]
[404336728,1770066654242,-1410.0,0.00020878,2]
[404336729,1770066654252,-616.0,0.00020878,2]
[404336730,1770066654261,-3481.0,0.00020878,2]
[404336731,1770066654271,-1334.0,0.00020878,2]
[404336732,1770066654280,-150.0,0.00020879,2]
[404336733,1770066654289,-1271.0,0.00020879,2]
[404336734,1770066654299,-917.0,0.00020879,2]
[404336735,1770066654308,-1205.0,0.00020879,2]
[404336736,1770066654318,-2445.0,0.00020879,2]
[404336737,1770066654327,-3253.0,0.00020879,2]
[404336738,1770066654336,-568.0,0.00020879,2]
[404336739,1770066654346,-230.64189733,0.000209,2]
[404336740,1770066654355,-5971.89146312,0.000209,2]
[404336741,1770066654365,-17709.0,0.00020973,2]
[404336742,1770066654374,-20000.0,0.00021,2]
[404336743,1770066654383,-40000.0,0.00021,2]
[404336744,1770066654392,-1194.5330497,0.00021,2]
[404336745,1770066654403,-197.1676119,0.00021,2]
[404336746,1770066654412,-190223.35736012,0.00021,2]
[404336747,1770066654421,-187100.5175304,0.00021,2]
[404336748,1770066654430,-400.0,0.00021,2]
[404336749,1770066654439,-603.0,0.00021,2]
[404336750,1770066654448,-984.0,0.00021,2]
[404336751,1770066654459,-616.0,0.00021,2]
[404336752,1770066654468,-12528.98,0.00021068,2]
[404336753,1770066654477,-159.60859955,0.00021194,2]
[404336754,1770066654487,-200.0,0.00021278,2]
[404336755,1770066654496,-839.0,0.00021335,2]
[404336756,1770066654506,-6384.87,0.0002137,2]
[404336757,1770066654516,-550.0,0.0002137,2]
[404336758,1770066654525,-650.0,0.0002137,2]
[404336759,1770066654535,-2352.0,0.000214,2]
[404336760,1770066654545,-57604.9766364,0.000215,2]
[404336761,1770066654554,-222.40959499,0.000215,2]
[404336762,1770066654564,-503.0,0.00021507,4]
[404336763,1770066654574,-155.0,0.00021599,2]
[404336764,1770066654583,-817.0,0.00021673,10]
[404336765,1770066654594,-150.0,0.0002169,2]
[404336766,1770066654604,-150.0,0.0002169,2]
[404336767,1770066654614,-150.0,0.0002169,2]
[404336768,1770066654623,-150.0,0.0002169,2]
[404336769,1770066654634,-150.0,0.0002169,2]
[404336770,1770066654643,-150.0,0.0002169,2]
[404336771,1770066654652,-150.0,0.0002169,2]
[404336772,1770066654663,-150.0,0.0002169,2]
[404336773,1770066654674,-150.0,0.0002169,2]
[404336774,1770066654683,-180.26364618,0.00021714,2]
[404336775,1770066654694,-5000.0,0.00021918,2]
[404336776,1770066654704,-151.0,0.00021918,2]
[404336777,1770066654716,-151.0,0.00021918,2]
[404336778,1770066654726,-151.0,0.00021918,2]
[404336779,1770066654736,-155.511067,0.00021918,2]
[404336780,1770066654746,-800.0,0.00021918,4]
[404336781,1770066654755,-800.0,0.00021918,4]
[404336782,1770066654765,-800.0,0.00021918,4]
[404336783,1770066654774,-800.0,0.00021918,4]
[404336784,1770066654785,-800.0,0.00021918,4]
[404336785,1770066654795,-800.0,0.00021918,4]
[404336786,1770066654804,-800.0,0.00021918,4]
[404336787,1770066654814,-800.0,0.00021918,4]
[404336788,1770066654824,-650.0,0.00021918,2]
[404336789,1770066654833,-750.0,0.00021918,2]
[404336790,1770066654844,-800.0,0.00021918,4]
[404336791,1770066654853,-800.0,0.00021918,4]
[404336792,1770066654863,-800.0,0.00021918,4]
[404336793,1770066654873,-800.0,0.00021918,4]
[404336794,1770066654882,-800.0,0.00021918,4]
[404336795,1770066654893,-800.0,0.00021918,4]
[404336796,1770066654903,-800.0,0.00021918,4]
[404336797,1770066654912,-800.0,0.00021918,4]
[404336798,1770066654923,-204.43,0.00021973,2]
[404336799,1770066654933,-159.60859955,0.00021979,2]
[404336800,1770066654944,-503.33496424,0.00021999,2]
[404336801,1770066654954,-151.24,0.00022,7]
[404336802,1770066654964,-7230.28,0.00022,2]
[404336803,1770066654974,-78573.88736207,0.00022,4]
[404336804,1770066654984,-163.53,0.00022,2]
[404336805,1770066654993,-160.0,0.00022,2]
[404336806,1770066655003,-416.03518578,0.00022035,2]
[404336807,1770066655013,-495.10716587,0.000221,2]
[404336808,1770066655023,-240.58043222,0.0002211,2]
[404336809,1770066655032,-503.0,0.00022342,5]
[404336810,1770066655042,-500.0,0.00022411,2]
[404336811,1770066655051,-19565.86,0.00022466,2]
[404336812,1770066655064,-546.18515186,0.00022466,2]
[404336813,1770066655073,-750.0,0.00022466,2]
[404336814,1770066655083,-35542.5774449,0.000225,2]
[404336815,1770066655094,-3609.90023483,0.000226,2]
[404336816,1770066655106,-255.83699043,0.000226,2]
[404336817,1770066655115,-165.79,0.00022603,2]
[404336818,1770066655125,-523.93162804,0.0002271,2]
[404336819,1770066655136,-839.0,0.00022715,3]
[404336820,1770066655145,-9563.9,0.0002274,2]
[404336821,1770066655154,-421.88469562,0.00022745,2]
[404336822,1770066655163,-16763.1750962,0.00022745,2]
[404336823,1770066655172,-159.60859955,0.00022764,2]
[404336824,1770066655181,-1500.0,0.00022812,7]
[404336825,1770066655192,-1500.0,0.00022812,7]
[404336826,1770066655202,-262744.13834339,0.00023,2]
[404336827,1770066655211,-1009.29926928,0.00023,2]
[404336828,1770066655220,-450.0,0.00023,2]
[404336829,1770066655230,-181.55642338,0.00023014,2]
[404336830,1770066655239,-8490.0,0.0002307,2]
[404336831,1770066655248,-150.0,0.00023178,2]
[404336832,1770066655258,-500.0,0.00023178,2]
[404336833,1770066655267,-500.0,0.00023178,2]
[404336834,1770066655277,-234.50786848,0.00023178,2]
[404336835,1770066655286,-445.0,0.00023178,2]
[404336836,1770066655296,-500.0,0.00023178,2]
[404336837,1770066655305,-500.0,0.00023178,2]
[404336838,1770066655315,-500.0,0.00023178,2]
[404336839,1770066655324,-150.0,0.00023178,2]
[404336840,1770066655334,-1370.0,0.00023178,2]
[404336841,1770066655343,-500.0,0.00023178,2]
[404336842,1770066655352,-500.0,0.00023178,2]
[404336843,1770066655362,-500.0,0.00023178,2]
[404336844,1770066655372,-500.0,0.00023178,2]
[404336845,1770066655382,-672.0,0.00023178,2]
[404336846,1770066655391,-500.0,0.00023178,2]
[404336847,1770066655401,-500.0,0.00023178,2]
[404336848,1770066655410,-500.0,0.00023178,2]
[404336849,1770066655420,-150.0,0.00023178,2]
[404336850,1770066655429,-150.0,0.00023178,2]
[404336851,1770066655438,-150.0,0.00023178,2]
[404336852,1770066655448,-150.0,0.00023178,2]
[404336853,1770066655457,-612.0,0.00023178,2]
[404336854,1770066655466,-150.86853195,0.00023178,2]
[404336855,1770066655475,-150.0,0.00023178,2]